Cogmind - Beta 13 @@@ ROGUE MODE // 2024.04.22 @ 23:41:37 Player: Cwaftwer Result: Destroyed by C-35 Carver with Carbide Saw Performance ------------- Evolutions (7) 3500 Regions Visited (20) 4000 Robots Destroyed (77) 385 Value Destroyed (1816) 1816 Prototype IDs (29) 580 Alien Tech Used (0) 0 Bonus (1739) 1739 TOTAL SCORE: 12020 Bonus ------- High Alert Combat Kills 11 Follower Combat Kills 728 Met Warlord at Base 500 MAIN.C Attacked Warlord 500 Cogmind --------- Core Integrity 0/1300 Matter 82/300 Energy 99/100 System Corruption 16% Temperature Cool (0) Movement Core (50) Location -3/Research Parts ------- > --- POWER (3) -------- (None) > --- PROPULSION (6) --- (None) > --- UTILITY (10) ----- Enhanced Optical Array Advanced Signal Interpreter > --- WEAPON (2) ------- (None) > --- INVENTORY (5) ---- Improved System Restoration Module Peak State ------------ > --- POWER ------------ Micro Fission Core Light Particle Reactor Micro Antimatter Reactor > --- PROPULSION ------- Improved Linear Gravjet VTOL Module Q-thruster Improved Diametric Drive Impulse Thruster Array > --- UTILITY ---------- Advanced Cooling System Advanced Weight Redist. System Advanced Visual Processing Unit Enhanced Optical Array Improved Signal Interpreter Improved Melee Analysis Suite Experimental Core Analyzer Improved Armor Integrity Analyzer Phase Shifter Advanced Shield Generator > --- WEAPON ----------- Enhanced Gauss Cannon Makeshift Hammer > --- INVENTORY -------- Light Angular Momentum Engine Neutrino Core Improved Propulsion Shielding Improved System Restoration Module [Rating: 127] Favorites ----------- Power Light Nuclear Core Engine Ion Engine Power Core Light Nuclear Core Reactor Micro Antimatter Reactor Propulsion VTOL Module Treads Armored Medium Treads Leg Enhanced Biometal Leg Wheel Wheel Hover Unit Gyrokinetic Inverter Flight Unit VTOL Module Utility Advanced Visual Processing Unit Device Microactuators Storage Small Storage Unit Processor Advanced Visual Processing Unit Hackware Hacking Suite Protection Hardened Medium Armor Plating Weapon Heavy Flail Energy Gun Small Laser Ballistic Gun Light Assault Rifle Ballistic Cannon Enhanced Gauss Cannon Launcher Improved Grenade Launcher Special Weapon RU-N14's Throwing Claymores v3 Impact Weapon Heavy Flail Piercing Weapon Enhanced Force Lance Build | -11 -10 -9 -8 -7 -7 -7 -6 -5 -5 -5 -5 -5 -5 -4 -4 -4 -4 -4 -4 -3 ------- Run | Yrd Mat Mat Mat Fac Was Fac Fac Fac Was Fac Upp Upp War Pro Fac Was Fac Upp Upp Res Slots Evolved 14 | . . 2 2 2 . . 2 2 . . . . . . 2 . . . . 2 Power 2 | . . 1 . . . . . . . . . . . . 1 . . . . . Propulsion 4 | . . . . 2 . . 2 . . . . . . . . . . . . . Utility 8 | . . 1 2 . . . . 2 . . . . . . 1 . . . . 2 Weapon . | . . . . . . . . . . . . . . . . . . . . . Parts Attached 189 | 12 1 19 27 . . 1 7 27 . . 2 . 35 2 3 2 11 2 1 37 Power 37 | 2 . 7 6 . . . 1 2 . . . . 10 1 1 . . . . 7 Engine 18 | 2 . 7 5 . . . . . . . . . 2 1 . . . . . 1 Core 15 | . . . 1 . . . 1 2 . . . . 7 . 1 . . . . 3 Reactor 4 | . . . . . . . . . . . . . 1 . . . . . . 3 Propulsion 56 | 5 1 3 7 . . 1 1 15 . . 2 . 8 . . 1 . . . 12 Treads 2 | . . . . . . . . 2 . . . . . . . . . . . . Leg 1 | . . . . . . . . . . . . . 1 . . . . . . . Wheel 10 | 5 1 3 1 . . . . . . . . . . . . . . . . . Hover 11 | . . . 2 . . . . 6 . . . . . . . . . . . 3 Flight 32 | . . . 4 . . 1 1 7 . . 2 . 7 . . 1 . . . 9 Utility 48 | 3 . 5 8 . . . 1 4 . . . . 8 . 2 1 3 1 1 11 Device 23 | 2 . 1 1 . . . 1 . . . . . 6 . 1 1 2 . 1 7 Storage 1 | 1 . . . . . . . . . . . . . . . . . . . . Processor 15 | . . . 5 . . . . 3 . . . . 1 . 1 . 1 1 . 3 Hackware 3 | . . . 1 . . . . 1 . . . . 1 . . . . . . . Protection 6 | . . 4 1 . . . . . . . . . . . . . . . . 1 Artifact . | . . . . . . . . . . . . . . . . . . . . . Weapon 48 | 2 . 4 6 . . . 4 6 . . . . 9 1 . . 8 1 . 7 Energy Gun 1 | 1 . . . . . . . . . . . . . . . . . . . . Energy Cannon . | . . . . . . . . . . . . . . . . . . . . . Ballistic Gun 8 | 1 . 4 1 . . . . . . . . . . . . . 1 . . 1 Ballistic Cannon 12 | . . . 2 . . . . 2 . . . . 4 . . . 1 1 . 2 Launcher 1 | . . . . . . . . 1 . . . . . . . . . . . . Special Weapon 1 | . . . . . . . . . . . . . 1 . . . . . . . Impact Weapon 23 | . . . 3 . . . 4 3 . . . . 4 1 . . 6 . . 2 Slashing Weapon . | . . . . . . . . . . . . . . . . . . . . . Piercing Weapon 2 | . . . . . . . . . . . . . . . . . . . . 2 Special Melee Weapon . | . . . . . . . . . . . . . . . . . . . . . Unidentified Prototypes 13 | . . 2 2 . . . . . . . . . 5 . . . 1 . . 3 Parts Lost 45 | . . 3 14 . . . 2 4 . . . . 1 . . 1 2 2 . 16 Power 7 | . . . 3 . . . 1 1 . . . . . . . . . . . 2 Propulsion 19 | . . 1 2 . . . 1 2 . . . . 1 . . 1 2 1 . 8 Utility 15 | . . 2 6 . . . . 1 . . . . . . . . . 1 . 5 Weapon 4 | . . . 3 . . . . . . . . . . . . . . . . 1 Highest Loss Streak 13 | . . 2 13 . . . 2 3 . . . . 1 . . 1 1 1 . 11 To Critical Strikes . | . . . . . . . . . . . . . . . . . . . . . Average Slot Usage (%) 83 | . 99 92 73 69 69 70 58 77 90 88 88 88 88 88 88 75 72 53 50 71 Engine 6 | . 14 19 8 7 7 7 1 . . . . . . 3 5 5 5 5 5 3 Core 4 | . . . 1 . . . 3 7 11 11 11 11 9 7 8 10 8 2 . 1 Wheel 8 | . 27 21 6 . . . . . . . . . . . . . . . . . Flight 14 | . . . 8 15 15 16 12 20 29 29 29 29 31 35 31 22 18 7 5 13 Device 8 | . 14 7 1 . . . 3 5 5 5 5 5 9 11 13 10 14 9 8 11 Storage 4 | . 14 11 3 . . . . . . . . . . . . . . . . . Processor 16 | . . . 22 30 30 30 22 19 23 23 23 23 22 23 23 21 22 26 31 26 Hackware 3 | . . . 1 7 7 7 6 7 11 11 11 11 6 . . . . . . . Protection 2 | . . 11 6 . . . . . . . . . . . . . . . . . Energy Gun 2 | . 14 4 . . . . . . 1 . . . . . . . . . . . Ballistic Gun 4 | . 14 16 4 . . . . . . . . . . . . . . . . . Impact Weapon 2 | . . . 5 7 7 7 6 3 5 5 5 5 3 5 5 5 1 . . 2 Naked Turns . | . . . . . . . . . . . . . . . . . . . . . Heaviest Build 49 | 13 13 35 35 10 10 10 11 21 15 15 15 15 49 21 26 26 28 26 10 42 Greatest Support 47 | 26 20 22 22 10 10 14 14 33 16 16 33 16 29 24 33 37 25 17 13 47 Greatest Overweight (x) 2 | . . 2 2 . . . 1 2 . . . . 2 . . 1 1 1 . . Average Overweight (x) . | . . . . . . . . . . . . . . . . . . . . . Largest Inventory Capacity 8 | 8 8 8 8 5 5 5 5 5 5 5 5 5 5 5 5 5 5 5 5 5 Average Capacity 6 | 7 8 8 6 5 5 5 5 5 5 5 5 5 5 5 5 5 5 5 5 5 Most Carried 8 | 4 4 8 8 5 5 5 5 5 4 4 5 5 5 5 5 5 5 5 5 5 Average Carried 4 | 1 3 7 5 5 5 4 4 4 4 4 4 5 4 4 4 4 4 4 4 3 Final Capacity 8 | 8 8 8 5 5 5 5 5 5 5 5 5 5 5 5 5 5 5 5 5 5 Final Carried 8 | 3 4 8 5 5 5 5 4 4 4 4 5 5 5 5 5 5 5 5 5 1 Class Distribution -------------------- 44% | Mutant 32% | Scavenger-Sprinter 10% | Scavenger-Mutant 10% | Sprinter Dominant Class ---------------- Mutant | -10/Materials Mutant | -9/Materials Mutant | -8/Materials Sprinter | -7/Factory Sprinter | -7/Waste Sprinter | -7/Factory Mutant | -6/Factory Mutant | -5/Factory Scavenger-Sprinter | -5/Waste Scavenger-Sprinter | -5/Factory Scavenger-Sprinter | -5/Upper Caves Scavenger-Sprinter | -5/Upper Caves Scavenger-Sprinter | -5/Warlord Scavenger-Sprinter | -4/Proximity Caves Scavenger-Sprinter | -4/Factory Scavenger-Sprinter | -4/Waste Scavenger-Sprinter | -4/Factory Scavenger-Mutant | -4/Upper Caves Scavenger-Mutant | -4/Upper Caves Scavenger-Sprinter | -3/Research Resources | -11 -10 -9 -8 -7 -7 -7 -6 -5 -5 -5 -5 -5 -5 -4 -4 -4 -4 -4 -4 -3 ----------- Run | Yrd Mat Mat Mat Fac Was Fac Fac Fac Was Fac Upp Upp War Pro Fac Was Fac Upp Upp Res Matter Collected 2759 | 269 63 596 594 . . 10 50 248 88 . . 20 350 20 . . 103 60 60 228 Remotely . | . . . . . . . . . . . . . . . . . . . . . Salvage Created 2604 | 45 82 775 882 . . 69 60 253 . 38 . . . 11 . . 218 19 . 152 Parts 136 | 8 3 55 25 . . 5 4 17 . 2 . . . 1 . . 5 1 . 10 Haulers Intercepted 6 | . . 1 5 . . . . . . . . . . . . . . . . . Recyclers Shooed 5 | 1 . 1 1 . . . . . . . . . . . . . 2 . . . Parts Field Recycled . | . . . . . . . . . . . . . . . . . . . . . Retrieved Matter . | . . . . . . . . . . . . . . . . . . . . . Parts Self-Destructed 12 | . . . . . . . . . . . 8 3 . . . . . 1 . . Prevented 4 | . . . . . . . . . . . . . . 1 . . . 3 . . Kills | -11 -10 -9 -8 -7 -7 -7 -6 -5 -5 -5 -5 -5 -5 -4 -4 -4 -4 -4 -4 -3 ------- Run | Yrd Mat Mat Mat Fac Was Fac Fac Fac Was Fac Upp Upp War Pro Fac Was Fac Upp Upp Res Combat Hostiles Destroyed 44 | . 2 15 11 . . 3 1 6 . . . . . 2 . . 1 1 . 2 Melee 6 | . . . 1 . . 2 1 . . . . . . 2 . . . . . . Guns 22 | . 2 15 4 . . . . . . . . . . . . . . . . 1 Cannons 13 | . . . 4 . . . . 6 . . . . . . . . 1 1 . 1 Classes Destroyed 14 | 1 1 7 2 . . . . 1 . . . . . 1 . . 1 . . . Worker 13 | . . . 5 . . . . 6 . . . . . . . . 1 . . 1 Builder 4 | . . 1 . . . . . . . . . . . . . . . . . 3 Tunneler 2 | 2 . . . . . . . . . . . . . . . . . . . . Hauler 6 | . . 1 5 . . . . . . . . . . . . . . . . . Recycler 2 | . . 1 . . . . . . . . . . . . . . 1 . . . Operator 3 | . . 2 . . . . . 1 . . . . . . . . . . . . Drone 2 | . . . . . . . . . . . . . . 2 . . . . . . Watcher 3 | . . . 2 . . . . . . 1 . . . . . . . . . . Swarmer 10 | . . 2 . . . 3 . 4 . . . . . . . . . 1 . . Cutter 3 | . . . . . . . . 2 . . . . . . . . . . . 1 Grunt 17 | . 2 8 6 . . . 1 . . . . . . . . . . . . . Brawler 2 | . . 1 1 . . . . . . . . . . . . . . . . . Sentry 8 | . . 4 4 . . . . . . . . . . . . . . . . . Programmer 2 | . . . . . . . . . . . . . . . . . 1 . . 1 Best Kill Streak 8 | 2 2 4 6 . . 3 1 8 . 1 . . . 1 . . 2 1 . 3 Combat Bots Only 4 | . 2 3 4 . . 3 1 4 . . . . . 1 . . 1 1 . 1 Max Kills in Single Turn 1 | 1 1 1 1 . . 1 1 1 . 1 . . . 1 . . 1 1 . 1 Gunslinging . | . . . . . . . . . . . . . . . . . . . . . Exploded . | . . . . . . . . . . . . . . . . . . . . . Melee 1 | . . . 1 . . 1 1 . . . . . . 1 . . . . . . Uniques/NPCs Destroyed . | . . . . . . . . . . . . . . . . . . . . . Combat | -11 -10 -9 -8 -7 -7 -7 -6 -5 -5 -5 -5 -5 -5 -4 -4 -4 -4 -4 -4 -3 -------- Run | Yrd Mat Mat Mat Fac Was Fac Fac Fac Was Fac Upp Upp War Pro Fac Was Fac Upp Upp Res Hostile Shots Fired 631 | . 5 74 177 . . 23 38 26 . . 2 6 1 1 . 2 14 6 . 256 Missed 257 | . 4 21 48 . . 7 15 11 . . 2 4 . 1 . 1 7 5 . 131 Damage Taken 7088 | . 11 630 2100 . . 233 290 548 . . 39 40 19 . . 50 123 91 . 2914 Core 2235 | . . 97 419 . . 42 124 194 . . . 14 . . . . 13 25 . 1307 Absorbed by Shields 216 | . . . . . . . . . . . . . . . . . 21 . . 195 Redirected to Shielding 101 | . . . . . . . . . . . . . . . . . . . . 101 Regen/Repaired (Parts) 459 | . 11 . 244 . . . 45 . 61 . . . 80 . . . . . . 18 Core Remaining (%) 81 | 100 100 75 23 . . 94 85 . . . . . . 79 . . . . 96 . Volleys Fired 180 | 7 10 66 67 . . . . 10 . . . . . . . . 3 1 . 16 Largest 2 | 2 2 2 2 . . . . 1 . . . . . . . . 1 1 . 1 Hottest 60 | 60 60 60 46 . . . . 57 . . . . . . . . 57 57 . 57 Shots Fired 291 | 14 20 129 98 . . . . 10 . . . . . . . . 3 1 . 16 Gun 234 | 14 20 129 63 . . . . . . . . . . . . . . . . 8 Cannon 56 | . . . 35 . . . . 9 . . . . . . . . 3 1 . 8 Launcher 1 | . . . . . . . . 1 . . . . . . . . . . . . Special . | . . . . . . . . . . . . . . . . . . . . . Kinetic 254 | 7 10 110 98 . . . . 9 . . . . . . . . 3 1 . 16 Thermal 36 | 7 10 19 . . . . . . . . . . . . . . . . . . Explosive 1 | . . . . . . . . 1 . . . . . . . . . . . . Electromagnetic . | . . . . . . . . . . . . . . . . . . . . . Robot Hit Streak 12 | 9 8 11 12 . . . . 6 . . . . . . . . 2 3 . 3 Robot Miss Streak 4 | 1 3 4 2 . . . . 2 . . . . . . . . 1 . . 3 Penetration Max 2 | . . . . . . . . . . . . . . . . . . . . 2 Secondary Targets 1 | . . 1 . . . . . . . . . . . . . . . . . . Max Gunslinging Chain 1 | . . 1 . . . . . . . . . . . . . . . . . . Shots Hit Robots 242 | 10 13 79 96 . . 4 3 15 . 1 1 . . 2 . . 5 1 . 12 Core Hits 90 | 4 7 34 26 . . 2 2 7 . 1 . . . . . . 1 1 . 5 Critical Kills 1 | . . . 1 . . . . . . . . . . . . . . . . . Critical Parts Destroyed 11 | . . 1 5 . . . . 3 . . . . . . . . . . . 2 Critical Strikes 15 | . . 1 7 . . . . 5 . . . . . . . . . . . 2 Destroy 2 | . . 1 1 . . . . . . . . . . . . . . . . . Blast 3 | . . . 1 . . . . 2 . . . . . . . . . . . . Smash 10 | . . . 5 . . . . 3 . . . . . . . . . . . 2 Melee Attacks 185 | . . . 54 . . 7 10 27 . 1 1 1 . 3 . 16 21 . . 44 Impact 177 | . . . 54 . . 7 10 27 . 1 1 1 . 3 . 16 21 . . 36 Slashing . | . . . . . . . . . . . . . . . . . . . . . Piercing 8 | . . . . . . . . . . . . . . . . . . . . 8 Sneak Attacks 21 | . . . 7 . . . . 6 . 1 1 . . 2 . . 2 . . 2 Combat Hostiles 3 | . . . . . . . . . . . 1 . . 2 . . . . . . Follow-up Attacks . | . . . . . . . . . . . . . . . . . . . . . Damage Inflicted 5943 | 91 122 1093 1975 . . 141 142 999 . 72 48 . . 196 . . 328 38 . 698 Guns 2223 | 91 122 1090 756 . . . . . . . . . . . . . . . . 164 Cannons 1075 | . . . 491 . . . . 263 . . . . . . . . 79 38 . 204 Explosions . | . . . . . . . . . . . . . . . . . . . . . Melee 2616 | . . . 728 . . 141 142 736 . 72 48 . . 196 . . 249 . . 304 Ramming 29 | . . 3 . . . . . . . . . . . . . . . . . 26 Kinetic 3065 | 37 55 978 1247 . . . . 263 . . . . . . . . 79 38 . 368 Thermal 233 | 54 67 112 . . . . . . . . . . . . . . . . . . Explosive . | . . . . . . . . . . . . . . . . . . . . . Electromagnetic . | . . . . . . . . . . . . . . . . . . . . . Impact 2616 | . . . 728 . . 141 142 736 . 72 48 . . 196 . . 249 . . 304 Slashing . | . . . . . . . . . . . . . . . . . . . . . Piercing . | . . . . . . . . . . . . . . . . . . . . . Highest Corruption 16 | . . . 4 . . . . . . . . . . . . 10 10 13 13 16 Average Corruption 7 | . . . 3 . . . . . . . . . . . . 3 10 11 13 8 Corruption Purged . | . . . . . . . . . . . . . . . . . . . . . Corruption Blocked 8 | . . . . . . . . 3 . . . . . . . 5 . . . . Effects 55 | . . . 13 . . . . . . . . . . . . 3 21 7 1 10 Message Errors 9 | . . . 2 . . . . . . . . . . . . 1 3 2 . 1 Matter Fused 12 | . . . 1 . . . . . . . . . . . . . 6 1 . 4 Heat Flow Errors 5 | . . . 5 . . . . . . . . . . . . . . . . . Energy Discharges 9 | . . . 3 . . . . . . . . . . . . . 4 1 . 1 Parts Rejected 1 | . . . . . . . . . . . . . . . . 1 . . . . Parts Fused 1 | . . . . . . . . . . . . . . . . . . . . 1 Data Loss (minor) 10 | . . . 2 . . . . . . . . . . . . . 5 1 1 1 Data Loss (major) 2 | . . . . . . . . . . . . . . . . . 1 . . 1 Alerts 2 | . . . . . . . . . . . . . . . . . 1 1 . . Misdirections 4 | . . . . . . . . . . . . . . . . 1 1 1 . 1 Overload Shots . | . . . . . . . . . . . . . . . . . . . . . Overflow Damage 1184 | . . . 245 . . 13 . 461 . . . . . 132 . . 116 . . 217 Projectiles . | . . . . . . . . . . . . . . . . . . . . . Explosions . | . . . . . . . . . . . . . . . . . . . . . Melee 1184 | . . . 245 . . 13 . 461 . . . . . 132 . . 116 . . 217 Knockbacks 15 | . . 1 4 . . . 3 2 . . . . . . . . 2 . . 3 Impact 7 | . . 1 2 . . . 2 1 . . . . . . . . 1 . . . Kinetic 6 | . . . 2 . . . . 1 . . . . . . . . 1 . . 2 Secondary 2 | . . . . . . . 1 . . . . . . . . . . . . 1 Self-Inflicted Damage 13 | . . 1 . . . . . . . . . . . . . . . . . 12 Shots . | . . . . . . . . . . . . . . . . . . . . . Rammed 3 | . . 1 . . . . . . . . . . . . . . . . . 2 Targets Rammed 3 | . . 1 . . . . . . . . . . . . . . . . . 2 Kicked . | . . . . . . . . . . . . . . . . . . . . . Crushed . | . . . . . . . . . . . . . . . . . . . . . Highest Temperature 393 | 40 46 393 280 . . . . 118 . . 135 . 164 . . 32 . 205 . 52 Average Temperature 68 | 18 23 81 100 . . . . 32 . . 91 . 74 . . 19 . 90 . 22 Received Heat Transfer 1596 | . 6 291 1017 . . 9 102 . . . . . 9 . . . . . . 162 Effects 3 | . . 3 . . . . . . . . . . . . . . . . . . Interference 3 | . . 3 . . . . . . . . . . . . . . . . . . Siege Activations . | . . . . . . . . . . . . . . . . . . . . . Robots Corrupted . | . . . . . . . . . . . . . . . . . . . . . Combat Hostiles . | . . . . . . . . . . . . . . . . . . . . . Parts Fried 25 | . . . 9 . . 1 . 5 . . . . . 2 . . 2 . . 6 Impact Corruptions 37 | . . . 12 . . 1 . 10 . . . . . 4 . . 3 . . 7 Robots Melted . | . . . . . . . . . . . . . . . . . . . . . Combat Hostiles . | . . . . . . . . . . . . . . . . . . . . . Parts Melted . | . . . . . . . . . . . . . . . . . . . . . Heat Transferred 525 | 125 150 250 . . . . . . . . . . . . . . . . . . Parts Sabotaged . | . . . . . . . . . . . . . . . . . . . . . Parts Stolen . | . . . . . . . . . . . . . . . . . . . . . Parts Stripped . | . . . . . . . . . . . . . . . . . . . . . Power Chain Reactions . | . . . . . . . . . . . . . . . . . . . . . Alert | -11 -10 -9 -8 -7 -7 -7 -6 -5 -5 -5 -5 -5 -5 -4 -4 -4 -4 -4 -4 -3 ------- Run | Yrd Mat Mat Mat Fac Was Fac Fac Fac Was Fac Upp Upp War Pro Fac Was Fac Upp Upp Res Peak Influence 545 | 10 50 227 545 54 54 263 327 420 147 166 . . . . 68 66 196 . . 226 Initial 159 | . 6 12 95 54 24 37 128 159 147 102 . . . . 53 23 46 . . 84 Average 129 | 3 15 133 239 54 40 124 219 238 147 152 . . . . 56 58 81 . . 139 Maximum Alert Level 2 | . . 1 2 . . 1 1 2 . . . . . . . . . . . 1 Low Security (%) 76 | 100 100 75 51 100 100 78 33 42 100 100 . . . . 100 100 100 . . 77 Level 1 19 | . . 24 30 . . 21 66 54 . . . . . . . . . . . 22 Level 2 3 | . . . 18 . . . . 2 . . . . . . . . . . . . Level 3 . | . . . . . . . . . . . . . . . . . . . . . Level 4 . | . . . . . . . . . . . . . . . . . . . . . Level 5 . | . . . . . . . . . . . . . . . . . . . . . High Security . | . . . . . . . . . . . . . . . . . . . . . Max Security . | . . . . . . . . . . . . . . . . . . . . . Squads Dispatched 18 | . 1 4 4 . . . 2 2 . . . . . . . . 1 . . 4 Investigation . | . . . . . . . . . . . . . . . . . . . . . Extermination 2 | . . . . . . . 1 . . . . . . . . . . . . 1 Reinforcement 16 | . 1 4 4 . . . 1 2 . . . . . . . . 1 . . 3 Assault . | . . . . . . . . . . . . . . . . . . . . . Garrison . | . . . . . . . . . . . . . . . . . . . . . Intercept . | . . . . . . . . . . . . . . . . . . . . . Searches Triggered . | . . . . . . . . . . . . . . . . . . . . . Construction Impeded 1 | . . . . . . . . . . . . . . . . . . . . 1 Haulers Reinforced . | . . . . . . . . . . . . . . . . . . . . . Active Scanning Responses . | . . . . . . . . . . . . . . . . . . . . . Cargo Convoy Interrupts . | . . . . . . . . . . . . . . . . . . . . . Stealth | -11 -10 -9 -8 -7 -7 -7 -6 -5 -5 -5 -5 -5 -5 -4 -4 -4 -4 -4 -4 -3 --------- Run | Yrd Mat Mat Mat Fac Was Fac Fac Fac Was Fac Upp Upp War Pro Fac Was Fac Upp Upp Res Distress Signals 8 | . 1 2 4 . . . . . . . . . . . . . 1 . . . Communications Jammed . | . . . . . . . . . . . . . . . . . . . . . Distress Signals . | . . . . . . . . . . . . . . . . . . . . . Times Spotted 230 | . 7 27 43 . 3 11 12 20 . . 9 5 34 5 . 6 12 7 . 29 Peak Tracking Total 15 | . 2 3 10 . 3 7 8 11 . . 4 4 12 5 . 6 5 5 . 15 Tactical Retreats 31 | . 1 5 8 . . 3 3 2 . . 1 . 1 1 . . 2 3 . 1 Traps | -11 -10 -9 -8 -7 -7 -7 -6 -5 -5 -5 -5 -5 -5 -4 -4 -4 -4 -4 -4 -3 ------- Run | Yrd Mat Mat Mat Fac Was Fac Fac Fac Was Fac Upp Upp War Pro Fac Was Fac Upp Upp Res Traps Triggered 13 | . . 3 . 1 . 1 2 3 . . . . . . 1 . 1 1 . . Indirectly . | . . . . . . . . . . . . . . . . . . . . . Trap Hack Attempts . | . . . . . . . . . . . . . . . . . . . . . Triggered . | . . . . . . . . . . . . . . . . . . . . . Disarmed . | . . . . . . . . . . . . . . . . . . . . . Reprogrammed . | . . . . . . . . . . . . . . . . . . . . . Reused . | . . . . . . . . . . . . . . . . . . . . . Traps Extracted . | . . . . . . . . . . . . . . . . . . . . . Installed . | . . . . . . . . . . . . . . . . . . . . . Triggered 9 | . . . . . . . . . . . . . 8 . . . . 1 . . Machines | -11 -10 -9 -8 -7 -7 -7 -6 -5 -5 -5 -5 -5 -5 -4 -4 -4 -4 -4 -4 -3 ---------- Run | Yrd Mat Mat Mat Fac Was Fac Fac Fac Was Fac Upp Upp War Pro Fac Was Fac Upp Upp Res Machines Disabled 4 | . . . . . . . . . . 1 . . 2 1 . . . . . . Max in Single Turn 1 | . . . . . . . . . . . . . . 1 . . . . . . Machines Repaired . | . . . . . . . . . . . . . . . . . . . . . Machines Dismantled . | . . . . . . . . . . . . . . . . . . . . . Machines Sabotaged . | . . . . . . . . . . . . . . . . . . . . . Overloaded Fab Kills . | . . . . . . . . . . . . . . . . . . . . . Hacking | -11 -10 -9 -8 -7 -7 -7 -6 -5 -5 -5 -5 -5 -5 -4 -4 -4 -4 -4 -4 -3 --------- Run | Yrd Mat Mat Mat Fac Was Fac Fac Fac Was Fac Upp Upp War Pro Fac Was Fac Upp Upp Res Machines Accessed 29 | . 5 3 5 . . 1 1 1 . . . 1 1 . . . 3 1 . 7 Terminals 18 | . 4 3 3 . . 1 . . . . . . . . . . 2 . . 5 Fabricators 2 | . . . . . . . . 1 . . . . . . . . 1 . . . Repair Stations 6 | . 1 . 2 . . . 1 . . . . . . . . . . . . 2 Recycling Units . | . . . . . . . . . . . . . . . . . . . . . Scanalyzers . | . . . . . . . . . . . . . . . . . . . . . Garrison Access . | . . . . . . . . . . . . . . . . . . . . . Total Hacks 72 | . 10 7 23 . . 2 2 1 . . . 1 6 . . . 6 1 . 13 Successful 49 | . 5 6 18 . . 1 2 1 . . . 1 6 . . . 2 1 . 6 Failed 23 | . 5 1 5 . . 1 . . . . . . . . . . 4 . . 7 Catastrophic 5 | . 2 . . . . . . . . . . . . . . . 1 . . 2 Database Lockouts . | . . . . . . . . . . . . . . . . . . . . . Manual . | . . . . . . . . . . . . . . . . . . . . . Terminals 43 | . 7 7 13 . . 2 . . . . . . . . . . 5 . . 9 Fabricators 2 | . . . . . . . . 1 . . . . . . . . 1 . . . Repair Stations 19 | . 3 . 10 . . . 2 . . . . . . . . . . . . 4 Recycling Units . | . . . . . . . . . . . . . . . . . . . . . Scanalyzers . | . . . . . . . . . . . . . . . . . . . . . Garrison Access . | . . . . . . . . . . . . . . . . . . . . . Terminal Hacks 33 | . 3 6 9 . . 1 . . . . . 1 6 . . . 2 1 . 4 Record 4 | . . . 1 . . . . . . . . . . . . . 1 . . 2 Part Schematic 1 | . . . . . . 1 . . . . . . . . . . . . . . Robot Analysis 1 | . 1 . . . . . . . . . . . . . . . . . . . Prototype ID Bank 8 | . . 1 1 . . . . . . . . . 6 . . . . . . . Open Door 2 | . . . . . . . . . . . . 1 . . . . . 1 . . Open DSF 1 | . . . . . . . . . . . . . . . . . . . . 1 Branch Access Points 1 | . . . . . . . . . . . . . . . . . 1 . . . Emergency Access Points 1 | . . 1 . . . . . . . . . . . . . . . . . . Terminal Index 1 | . . 1 . . . . . . . . . . . . . . . . . . Recycling Unit Index 1 | . 1 . . . . . . . . . . . . . . . . . . . Alert Level 4 | . . . 4 . . . . . . . . . . . . . . . . . Unreport Threat 2 | . . . 2 . . . . . . . . . . . . . . . . . Dispatch Records 1 | . . 1 . . . . . . . . . . . . . . . . . . Maintenance Status 1 | . . 1 . . . . . . . . . . . . . . . . . . Hauler Manifests 1 | . . 1 . . . . . . . . . . . . . . . . . . Registered Components 1 | . 1 . . . . . . . . . . . . . . . . . . . Zone Layout 2 | . . . 1 . . . . . . . . . . . . . . . . 1 Fabricator Hacks 1 | . . . . . . . . 1 . . . . . . . . . . . . Network Status 1 | . . . . . . . . 1 . . . . . . . . . . . . Repair Station Hacks 15 | . 2 . 9 . . . 2 . . . . . . . . . . . . 2 Scan Component 8 | . 1 . 5 . . . 1 . . . . . . . . . . . . 1 Repair 7 | . 1 . 4 . . . 1 . . . . . . . . . . . . 1 Recycling Unit Hacks . | . . . . . . . . . . . . . . . . . . . . . Scanalyzer . | . . . . . . . . . . . . . . . . . . . . . Garrison Access Hacks . | . . . . . . . . . . . . . . . . . . . . . Unauthorized Hacks . | . . . . . . . . . . . . . . . . . . . . . Terminals . | . . . . . . . . . . . . . . . . . . . . . Fabricators . | . . . . . . . . . . . . . . . . . . . . . Repair Stations . | . . . . . . . . . . . . . . . . . . . . . Recycling Units . | . . . . . . . . . . . . . . . . . . . . . Scanalyzers . | . . . . . . . . . . . . . . . . . . . . . Garrison Access . | . . . . . . . . . . . . . . . . . . . . . Data Cores Recovered 1 | . . . . . . . . 1 . . . . . . . . . . . . Used . | . . . . . . . . . . . . . . . . . . . . . Hacking Detections 23 | . 5 3 5 . . 1 . . . . . . . . . . 3 . . 6 Full Trace Events . | . . . . . . . . . . . . . . . . . . . . . Feedback Events . | . . . . . . . . . . . . . . . . . . . . . Feedback Blocked . | . . . . . . . . . . . . . . . . . . . . . Robot Schematics Acquired . | . . . . . . . . . . . . . . . . . . . . . Robots Built . | . . . . . . . . . . . . . . . . . . . . . Authchips . | . . . . . . . . . . . . . . . . . . . . . Time . | . . . . . . . . . . . . . . . . . . . . . Total Robot Build Rating . | . . . . . . . . . . . . . . . . . . . . . Part Schematics Acquired 1 | . . . . . . 1 . . . . . . . . . . . . . . Parts Built . | . . . . . . . . . . . . . . . . . . . . . Authchips . | . . . . . . . . . . . . . . . . . . . . . Time . | . . . . . . . . . . . . . . . . . . . . . Total Part Build Rating . | . . . . . . . . . . . . . . . . . . . . . Parts Repaired 7 | . 1 . 4 . . . 1 . . . . . . . . . . . . 1 Time 333 | . 26 . 222 . . . 60 . . . . . . . . . . . . 25 Parts Recycled . | . . . . . . . . . . . . . . . . . . . . . Recycled Matter . | . . . . . . . . . . . . . . . . . . . . . Retrieved Matter . | . . . . . . . . . . . . . . . . . . . . . Retrieved Components . | . . . . . . . . . . . . . . . . . . . . . Parts Scanalyzed . | . . . . . . . . . . . . . . . . . . . . . Part Schematics Acquired . | . . . . . . . . . . . . . . . . . . . . . Parts Damaged . | . . . . . . . . . . . . . . . . . . . . . Bothacking | -11 -10 -9 -8 -7 -7 -7 -6 -5 -5 -5 -5 -5 -5 -4 -4 -4 -4 -4 -4 -3 ------------ Run | Yrd Mat Mat Mat Fac Was Fac Fac Fac Was Fac Upp Upp War Pro Fac Was Fac Upp Upp Res Used RIF Installer . | . . . . . . . . . . . . . . . . . . . . . Robots Hacked . | . . . . . . . . . . . . . . . . . . . . . Non-combat . | . . . . . . . . . . . . . . . . . . . . . Combat . | . . . . . . . . . . . . . . . . . . . . . Robot Hacks Applied . | . . . . . . . . . . . . . . . . . . . . . Relay Couplers Released . | . . . . . . . . . . . . . . . . . . . . . Fabnet Peak Effective % . | . . . . . . . . . . . . . . . . . . . . . Robots Rewired . | . . . . . . . . . . . . . . . . . . . . . Allies Hacked . | . . . . . . . . . . . . . . . . . . . . . Hacks Repelled . | . . . . . . . . . . . . . . . . . . . . . Allies | -11 -10 -9 -8 -7 -7 -7 -6 -5 -5 -5 -5 -5 -5 -4 -4 -4 -4 -4 -4 -3 -------- Run | Yrd Mat Mat Mat Fac Was Fac Fac Fac Was Fac Upp Upp War Pro Fac Was Fac Upp Upp Res Total Allies 20 | . . . . . . . . . 20 . . . . . . . . . . . Largest Group 20 | . . . . . . . . . 20 18 16 9 6 . . . . . . . Highest-Rated Group 760 | . . . . . . . . . 760 706 631 410 272 . . . . . . . Highest-Rated Ally 50 | . . . . . . . . . 50 50 50 50 50 . . . . . . . Total Orders . | . . . . . . . . . . . . . . . . . . . . . Ally Attacks 109 | . . . . . . . . . . 3 66 9 31 . . . . . . . Total Damage 3332 | . . . . . . . . . . 98 1551 566 1117 . . . . . . . Kills 27 | . . . . . . . . . . 1 15 5 6 . . . . . . . Allies Corrupted . | . . . . . . . . . . . . . . . . . . . . . Allies Melted . | . . . . . . . . . . . . . . . . . . . . . Intel | -11 -10 -9 -8 -7 -7 -7 -6 -5 -5 -5 -5 -5 -5 -4 -4 -4 -4 -4 -4 -3 ------- Run | Yrd Mat Mat Mat Fac Was Fac Fac Fac Was Fac Upp Upp War Pro Fac Was Fac Upp Upp Res Robot Analysis Total 1 | . 1 . . . . . . . . . . . . . . . . . . . Derelict Logs Recovered 6 | . . . . . . . . . . . 2 . . 2 . . . 2 . . Drone Launches . | . . . . . . . . . . . . . . . . . . . . . Drone Recoveries . | . . . . . . . . . . . . . . . . . . . . . Exploration | -11 -10 -9 -8 -7 -7 -7 -6 -5 -5 -5 -5 -5 -5 -4 -4 -4 -4 -4 -4 -3 ------------- Run | Yrd Mat Mat Mat Fac Was Fac Fac Fac Was Fac Upp Upp War Pro Fac Was Fac Upp Upp Res Turns Passed 7772 | 115 1250 933 997 6 38 155 292 387 163 53 413 240 1010 198 43 127 463 161 28 700 Spaces Moved 11280 | 77 341 495 830 19 89 418 467 679 231 71 1139 784 1623 1013 146 211 930 396 70 1251 Core 35 | 4 . . 4 . . . . 2 . . . . . . . . . . . 25 Treads . | . . . . . . . . . . . . . . . . . . . . . Legs . | . . . . . . . . . . . . . . . . . . . . . Wheels 1007 | 73 341 495 98 . . . . . . . . . . . . . . . . . Hover 10 | . . . 9 . . . . 1 . . . . . . . . . . . . Flight 10228 | . . . 719 19 89 418 467 676 231 71 1139 784 1623 1013 146 211 930 396 70 1226 Fastest Speed 11 | 50 80 80 32 32 32 29 29 14 23 23 14 23 11 18 18 11 23 32 35 28 Average Speed 32 | 86 80 91 40 32 32 31 33 28 23 23 22 23 30 18 18 22 27 33 35 32 Slowest Speed 195 | 90 80 110 120 32 32 32 107 195 23 23 23 23 150 18 18 109 112 112 35 50 Overloaded Moves 167 | . . . . . . . . 56 . . 21 . 67 . . 17 6 . . . Propulsion Burnouts . | . . . . . . . . . . . . . . . . . . . . . Robots Hopped 9 | . . . . . . . . . . . . . 3 . . . 2 . . 4 Cave-ins Triggered 4 | . . . 1 . . . . 1 . . . . . . . . . . . 2 Exploration Rate (%) 47 | 4 46 44 83 2 73 16 21 18 94 3 94 81 89 86 5 86 32 64 13 35 Regions Visited 20 Branch Regions 6 Pre-discovered Areas 1 | . . . . . . . . . . . . . . . . . . 1 . . Known Exits Taken 4 | . . . . . . . . . . . . . . 1 . . 1 1 1 . Unknown Exits Taken 10 | 1 1 1 1 . . 1 1 . . 1 1 1 1 . . . . . . . Scrap Searched 8 | . . . . . . . . . . . 2 2 . 1 . . . 1 2 . Spaces Dug 105 | . . . 19 . . . 6 14 . . . 1 . . . 16 18 . . 31 Terrain Destroyed 124 | . . . 20 . . . 6 26 . . . 1 . . . 16 20 . . 35 Melee 105 | . . . 19 . . . 6 14 . . . 1 . . . 16 18 . . 31 Projectile 9 | . . . 1 . . . . 2 . . . . . . . . 2 . . 4 AOE 10 | . . . . . . . . 10 . . . . . . . . . . . . Terrain Rammed . | . . . . . . . . . . . . . . . . . . . . . Walls Destroyed . | . . . . . . . . . . . . . . . . . . . . . Machines Disabled . | . . . . . . . . . . . . . . . . . . . . . Actions | -11 -10 -9 -8 -7 -7 -7 -6 -5 -5 -5 -5 -5 -5 -4 -4 -4 -4 -4 -4 -3 --------- Run | Yrd Mat Mat Mat Fac Was Fac Fac Fac Was Fac Upp Upp War Pro Fac Was Fac Upp Upp Res Total 14844 | 111 1299 856 1314 19 97 431 589 839 340 105 1289 841 2152 1026 163 276 1121 423 73 1480 Wait 2603 | 1 946 232 272 . 9 3 63 21 109 34 145 57 432 8 9 42 118 20 . 82 Move 11243 | 76 340 494 829 19 88 417 466 678 230 70 1138 783 1617 1012 146 210 924 395 69 1242 Hop 8 | . . . . . . . . . . . . . 2 . . . 2 . . 4 Pick Up 194 | 12 2 29 40 . . 2 4 24 . . 2 . 27 . 4 3 8 2 2 33 Fast Attach . | . . . . . . . . . . . . . . . . . . . . . Attach 136 | 8 1 13 22 . . 1 3 20 . . . . 15 1 3 2 11 2 1 33 Detach 25 | 1 . 1 . . . . . 2 . . . . 5 1 . 1 10 1 . 3 Swap 53 | 4 . 6 5 . . . 4 7 . . 2 . 20 1 . . . . . 4 Drop 125 | 2 . 14 25 . . 1 3 13 1 . 1 . 34 . 1 2 9 2 1 16 Fire 180 | 7 10 66 67 . . . . 10 . . . . . . . . 3 1 . 16 Melee 185 | . . . 54 . . 7 10 27 . 1 1 1 . 3 . 16 21 . . 44 Ram 3 | . . 1 . . . . . . . . . . . . . . . . . 2 Kick . | . . . . . . . . . . . . . . . . . . . . . Crush . | . . . . . . . . . . . . . . . . . . . . . Escape Stasis 89 | . . . . . . . 36 37 . . . . . . . . 15 . . 1 Rewire . | . . . . . . . . . . . . . . . . . . . . . Trap . | . . . . . . . . . . . . . . . . . . . . . Miscellaneous . | . . . . . . . . . . . . . . . . . . . . . Route ------- -11/Scrapyard -10/Materials (discovered 2 exits: *Mat / [*Min]) -9/Materials (discovered 2 exits: *Mat x2) -8/Materials (discovered 2 exits: [*Fac x2]) -7/Factory -7/Waste -7/Factory -6/Factory -5/Factory -5/Waste -5/Factory -5/Upper Caves -5/Upper Caves (discovered 2 exits: *Fac / *War) -5/Warlord -4/Proximity Caves -4/Factory -4/Waste -4/Factory (discovered 2 exits: *Upp x2) -4/Upper Caves -4/Upper Caves -3/Research History --------- Turn | Location | Event 33 | -11/Scrapyard | Discovered new exit (range 16) 116 | -11/Scrapyard | Entered Materials 306 | -10/Materials | Build established: Mutant 916 | -10/Materials | Derelicts attacked the area 943 | -10/Materials | Repaired Wheel 956 | -10/Materials | Discovered new exit (range 16) 1099 | -10/Materials | Discovered new exit (range 5) 1366 | -10/Materials | Entered another Materials area 1366 | -9/Materials | Evolved 2 slots: Power x1, Utility x1 1639 | -9/Materials | Discovered new exit (range 16) 2223 | -9/Materials | Discovered new exit (range 14) 2299 | -9/Materials | Entered another Materials area 2299 | -8/Materials | Evolved 2 slots: Utility x2 2421 | -8/Materials | Repaired Faulty Cld. Ion Engine 2489 | -8/Materials | Repaired Imp. Assault Rifle 2725 | -8/Materials | Lost 13 parts (3p2n5u3w) 2810 | -8/Materials | Core integrity fell below 50% 2854 | -8/Materials | Discovered new exit (range 12) 2983 | -8/Materials | Crushed by falling debris 3042 | -8/Materials | Build established: Sprinter 3148 | -8/Materials | Discovered new exit (range 15) 3214 | -8/Materials | Repaired Imp. VTOL Module 3278 | -8/Materials | Repaired Imp. VTOL Module 3296 | -8/Materials | Entered Factory 3296 | -7/Factory | Evolved 2 slots: Propulsion x2 3302 | -7/Factory | Sucked down chute 3302 | -7/Factory | Entered Waste 3304 | -7/Waste | Spotted C-40 Crusher 3307 | -7/Waste | Spotted C-40 Crusher 3310 | -7/Waste | Spotted C-40 Crusher 3310 | -7/Waste | Spotted C-40 Crusher 3327 | -7/Waste | Spotted C-40 Crusher 3327 | -7/Waste | Discovered new exit (range 12) 3340 | -7/Waste | Entered Factory 3488 | -7/Factory | Discovered new exit (range 16) 3495 | -7/Factory | Entered another Factory area 3495 | -6/Factory | Evolved 2 slots: Propulsion x2 3582 | -6/Factory | Repaired Imp. VTOL Module? 3781 | -6/Factory | Discovered new exit (range 19) 3787 | -6/Factory | Entered another Factory area 3787 | -5/Factory | Evolved 2 slots: Utility x2 3809 | -5/Factory | Build established: Mutant 4066 | -5/Factory | Crushed by falling debris 4122 | -5/Factory | Lost 3 parts (2n1u) 4174 | -5/Factory | Sucked down chute 4174 | -5/Factory | Entered Waste 4175 | -5/Waste | Joined by Warlord forces that had cleared the area 4221 | -5/Waste | Discovered new exit (range 14) 4337 | -5/Waste | Entered Factory 4337 | -5/Factory | Accompanied by 18 allies 4353 | -5/Factory | Discovered new exit (range 15) 4390 | -5/Factory | Entered Upper Caves 4390 | -5/Upper Caves | Accompanied by 16 allies 4423 | -5/Upper Caves | Learned 12 Factory zone layouts 4438 | -5/Upper Caves | Attracted the attention of an 0b10 checkpoint 4447 | -5/Upper Caves | Spotted B-75 Beast 4463 | -5/Upper Caves | Lost 5 allies 4523 | -5/Upper Caves | Learned Factory terminal intel 4642 | -5/Upper Caves | Build established: Scavenger-Sprinter 4733 | -5/Upper Caves | Discovered new exit (range 9) 4803 | -5/Upper Caves | Entered another Upper Caves area 4803 | -5/Upper Caves | Accompanied by 9 allies 4839 | -5/Upper Caves | Discovered new exit (range 9) 4900 | -5/Upper Caves | Encountered a Warlord checkpoint 4974 | -5/Upper Caves | Discovered new exit (range 9) 5013 | -5/Upper Caves | Attracted the attention of an 0b10 checkpoint 5043 | -5/Upper Caves | Entered Warlord 5043 | -5/Warlord | Accompanied by 6 allies 5083 | -5/Warlord | Found Signal Generator 5134 | -5/Warlord | Met Warlord 5159 | -5/Warlord | Warlord's base attacked by MAIN.C 5179 | -5/Warlord | Found Prototype Special Weapon 5180 | -5/Warlord | Identified RU-N14's Throwing Claymores v3 5509 | -5/Warlord | Warlord forces counterattacked 5600 | -5/Warlord | Spotted Executioner 5625 | -5/Warlord | Spotted Executioner 5644 | -5/Warlord | Found Prototype Processor 5646 | -5/Warlord | Identified Exp. Core Analyzer 5662 | -5/Warlord | Lost 12 allies 5672 | -5/Warlord | Spotted Executioner 5722 | -5/Warlord | Lost 11 allies 5766 | -5/Warlord | Spotted Executioner 5773 | -5/Warlord | Found Prototype Ballistic Cannon 5775 | -5/Warlord | Identified Hvy. Autocannon 5834 | -5/Warlord | Warlord base infiltrated, sounded retreat 6034 | -5/Warlord | Discovered new exit (range 13) 6050 | -5/Warlord | Lost 3 allies 6053 | -5/Warlord | Entered Proximity Caves 6078 | -4/Proximity Caves | Identified exit to Factory 6205 | -4/Proximity Caves | Learned Research trap positions 6245 | -4/Proximity Caves | Spotted B-86 Titan 6251 | -4/Proximity Caves | Entered Factory 6251 | -4/Factory | Evolved 2 slots: Power x1, Utility x1 6252 | -4/Factory | Identified exit to Research 6253 | -4/Factory | Loaded intel: 26 terminal locations 6294 | -4/Factory | Sucked down chute 6294 | -4/Factory | Entered Waste 6295 | -4/Waste | Spotted C-40 Crusher 6300 | -4/Waste | Spotted C-40 Crusher 6304 | -4/Waste | Spotted C-40 Crusher 6309 | -4/Waste | EMP discharged 6311 | -4/Waste | Spotted C-40 Crusher 6312 | -4/Waste | Crushed by Compactor (1 part destroyed, 2 dropped) 6323 | -4/Waste | Spotted C-40 Crusher 6374 | -4/Waste | Spotted C-40 Crusher 6409 | -4/Waste | EMP discharged 6409 | -4/Waste | System corruption reached 10% 6412 | -4/Waste | Discovered new exit (range 12) 6420 | -4/Waste | Identified exit to Factory 6421 | -4/Waste | Entered Factory 6697 | -4/Factory | Spotted B-86 Titan 6736 | -4/Factory | Identified exit to Upper Caves 6884 | -4/Factory | Entered Upper Caves 6981 | -4/Upper Caves | Spotted B-86 Titan 7007 | -4/Upper Caves | Learned Research terminal intel 7022 | -4/Upper Caves | Learned location of Armory (-3) 7025 | -4/Upper Caves | Discovered new exit (range 7) 7045 | -4/Upper Caves | Identified exit to Upper Caves 7045 | -4/Upper Caves | Entered another Upper Caves area 7054 | -4/Upper Caves | Discovered exit to Research (range 12) 7073 | -4/Upper Caves | Entered Research 7073 | -3/Research | Evolved 2 slots: Utility x2 7074 | -3/Research | Loaded intel: 67 trap records 7075 | -3/Research | Loaded intel: 25 terminal locations 7084 | -3/Research | Identified exit to DSF 7495 | -3/Research | Crushed by falling debris 7518 | -3/Research | Spotted B-86 Titan 7560 | -3/Research | Repaired Phase Shifter 7606 | -3/Research | Crushed by falling debris 7607 | -3/Research | System corruption reached 10% 7637 | -3/Research | Lost 3 parts (1p1n1u) 7708 | -3/Research | Found Enh. Force Lance 7718 | -3/Research | Core integrity fell below 50% 7759 | -3/Research | Core integrity fell below 20% 7773 | -3/Research | Destroyed by C-35 Carver with Carbide Saw Last Messages --------------- Acquired Impulse Thruster Array. Impulse Thruster destroyed. Acquired 30 matter. Exp. Core Analyzer severed. Enh. Force Lance severed. Slug penetrates G-67 Veteran. C-35 Carver destroyed. K-01 Serf collects debris. Slug penetrates Quantum Generator. Impulse Thruster Array destroyed. Penetrated by Slug. Slug penetrates Quantum Generator. Penetrated by Slug. K-01 Serf collects debris. Slammed into K-01 Serf. K-01 Serf destroyed. Slug penetrates Wall. Imp. Armor Integrity Analyzer severed. Slug penetrates Wall. Slammed into H-77 Assassin. Map ----- +----------------------------------------------------+ | ????????????????????????# ]]= ! # | | ????????????????????????# ]]= # | | ????????????????????????# ]= # # | | ????????????????????????# # | | ????????????????????????# # # | | ????????????????????????# # | | ????????????????????????# # # | | ????????????????????????# = # | | ????????????????????????##+######## #########? | | ?????????????????????????# #??????#* #???? # | | ??????????????????########Y######## + # | | ??????????????????# /%=/ #"" ???? | | ??????????????????# /]#### #?? ?? | | ??????????????????# """ """ #??# #???? # | | ??????????????????# """ """ #??# #????????? | | ??????????????????# """ """ #??# #????????? | | ??????????????????# """ """ #??# +????????? | | ??????????????????# """ """ #??# #????????? | | ??????????????????# """ """ #??# #????????? | | ??????????????????# """ """ #??# #????????? | | ??????????????????# g #??# #????????? | | ??????????????????# g ######+########???? | | ??????????????????# % # #???? | | ????????###+###########+#/###### #???? | | ???? u khc / #???? | | ???? p @h##### #???? | | ???? #???# #???? | | ???? p #???# #???? | | ?????#### #???# """ #???? | | ????????# #???# """ #???? | | ????????# """ """ #???# !!! """ #???? | | ????????# """ """ #???# !! #???? | | ????????????""" """ #???# !! #???? | | ???????????? #???###############???? | | ?????????? #?????????????????????? | | ?????????? #?????????????????????? | | ????????? ""? """ #?????????????????????? | | ????????? ???" """ #?????????????????????? | | ??????????????? """ #?????????????????????? | | ??????????????? ?? #?????????????????????? | | ?????????????? ?? #?????????????????????? | | ??????????????????? +?????????????????????? | | ??????????????????? #?????????????????????? | | ??????????????????? ??????????????????????? | | ??????????????????? ??????????????????????? | | ????????????????????? ??????????????????????? | | ??????????????????????? ??????????????????????? | | ?????????????????????????????????????????????????? | | ?????????????????????????????????????????????????? | | ??????T??????????????????????????????????????????? | +----------------------------------------------------+ Best States ------------- Heat Dissipation 77 Energy Generation 42 Energy Capacity 540 Matter Stores 300 Matter Capacity 300 Sight Range 22 Terrain Scan Range 16 Terrain Scan Density 10 Additional Mass Support 9 Corruption Block 8 Armor Coverage 450 Propulsion Shielding 66 Melee Speed Boost 20 Phase Shifting 5 Evasion (%) 77 Targeting Accuracy 6 Melee Accuracy 6 Target Analysis 8 Core Analysis 8 Armor Integrity Analysis 40 Recoil Reduction 1 Salvage Targeting 3 Offensive Hacking 10 Defensive Hacking 14 Item Schematics ----------------- Imp. Reaction Control System | -7/Factory | Hacked Robot Schematics ------------------ None Fabricated ------------ Nothing Alien Tech Used ----------------- None Achievements -------------- A Powerful Ally? Charge!!! Slippery One Watch This! Challenges ------------ None Game ------ Seed CouplerProtonWheel Manual? 0 Play Time 02:40:39 Cumulative 30.8 hours Start 2024.04.22 @ 20:59:11 End 2024.04.22 @ 23:41:37 Sessions 1 Manual Loads 0 Difficulty Rogue Special Mode None Game No. 44 Rogue 43 Adventurer 1 Explorer 0 Win Type - Total 0 Types 0/0/0/0/0/0/0/0/0 Lore% 28 Gallery% 35 Achievement% 27 Wizard Run 0 Options --------- Layout 1 ASCII 0 Keyboard 0 Movement Mouse Keybinds 0 Fullscreen 1 Font 24/Smallcaps Map View 50x40 Zoom Use 0% Tactical HUD 0 Map Filters NONE Filters NONE Steam 1 RUN: 1fb10e0e-e697-4f14-92c9-8875355e185a